[Event "*** Titled Tuesday Blitz"]
[Site "Chess.com"]
[Date "2018.09.04"]
[Round "6"]
[White "2165149677570"]
[Black "Pudor"]
[Result "1-0"]
[WhiteElo "2301"]
[BlackElo "2215"]
[TimeControl "180+2"]
[EndTime "14:54:59 PDT"]
[Termination "2165149677570 won by resignation"]

1. e4 {[%clk 0:03:01.9]} 1... c5 {[%clk 0:02:59.9]} 2. Nf3 {[%clk 0:03:02.2]}
2... Nc6 {[%clk 0:03:00.5]} 3. Bb5 {[%clk 0:02:59.8]} 3... Qb6 {[%clk
0:03:01.3]} 4. Nc3 {[%clk 0:02:57.9]} 4... e6 {[%clk 0:03:02.3]} 5. O-O {[%clk
0:02:54.8]} 5... a6 {[%clk 0:03:03.4]} 6. Bc4 {[%clk 0:02:51.8]} 6... Nge7
{[%clk 0:02:59.9]} 7. e5 {[%clk 0:02:47.3]} 7... Ng6 {[%clk 0:02:56.3]} 8. Re1
{[%clk 0:02:46]} 8... Qc7 {[%clk 0:02:56.7]} 9. Qe2 {[%clk 0:02:34]} 9... b5
{[%clk 0:02:54.8]} 10. Bd3 {[%clk 0:02:35.5]} 10... Bb7 {[%clk 0:02:13.4]} 11.
a4 {[%clk 0:02:30.3]} 11... b4 {[%clk 0:02:04]} 12. Nd1 {[%clk 0:02:17.4]} 12...
d5 {[%clk 0:01:56.4]} 13. exd6 {[%clk 0:02:14.2]} 13... Bxd6 {[%clk 0:01:56.8]}
14. g3 {[%clk 0:02:11.6]} 14... Nge5 {[%clk 0:01:39.6]} 15. Nxe5 {[%clk
0:02:10.3]} 15... Bxe5 {[%clk 0:01:35.5]} 16. c3 {[%clk 0:02:10.1]} 16... Bf6
{[%clk 0:01:27.7]} 17. Be4 {[%clk 0:02:08]} 17... O-O {[%clk 0:01:24]} 18. Bg2
{[%clk 0:01:51.7]} 18... Rfd8 {[%clk 0:01:16.3]} 19. Ne3 {[%clk 0:01:50.5]}
19... Ne5 {[%clk 0:01:16]} 20. Nc4 {[%clk 0:01:39.4]} 20... Nd3 {[%clk
0:01:08.4]} 21. Bxb7 {[%clk 0:01:37.5]} 21... Qxb7 {[%clk 0:01:04.2]} 22. Qe4
{[%clk 0:01:39]} 22... Rab8 {[%clk 0:00:52.3]} 23. Qxb7 {[%clk 0:01:37.2]} 23...
Rxb7 {[%clk 0:00:54.2]} 24. Re3 {[%clk 0:01:35.6]} 24... b3 {[%clk 0:00:42.6]}
25. Kf1 {[%clk 0:01:04.4]} 25... Rbd7 {[%clk 0:00:18.9]} 26. Ke2 {[%clk
0:01:02.8]} 26... Nxc1+ {[%clk 0:00:18.8]} 27. Rxc1 {[%clk 0:01:03.4]} 27... e5
{[%clk 0:00:20.3]} 28. Rd1 {[%clk 0:00:55.6]} 28... Bg5 {[%clk 0:00:21]} 29.
Rxe5 {[%clk 0:00:53]} 29... Rd5 {[%clk 0:00:22]} 30. Rxd5 {[%clk 0:00:42.1]}
30... Rxd5 {[%clk 0:00:23.9]} 31. f4 {[%clk 0:00:43.5]} 31... Bd8 {[%clk
0:00:24.9]} 32. d4 {[%clk 0:00:43.4]} 32... f6 {[%clk 0:00:22.3]} 33. Ne3 {[%clk
0:00:40.3]} 33... Rd7 {[%clk 0:00:21.3]} 34. dxc5 {[%clk 0:00:40.2]} 34... Rxd1
{[%clk 0:00:22.2]} 35. Nxd1 {[%clk 0:00:41.5]} 35... Kf7 {[%clk 0:00:22.8]} 36.
Kd3 {[%clk 0:00:42.7]} 36... Ke6 {[%clk 0:00:24]} 37. Kc4 {[%clk 0:00:44.2]}
37... Kf5 {[%clk 0:00:23.5]} 38. Nf2 {[%clk 0:00:41.7]} 38... g5 {[%clk
0:00:23.8]} 39. fxg5 {[%clk 0:00:40.7]} 39... fxg5 {[%clk 0:00:25.7]} 40. Kxb3
{[%clk 0:00:41.2]} 40... h5 {[%clk 0:00:24.9]} 41. Kc4 {[%clk 0:00:38.2]} 41...
h4 {[%clk 0:00:26.1]} 42. gxh4 {[%clk 0:00:38.9]} 42... gxh4 {[%clk 0:00:27.2]}
43. b4 {[%clk 0:00:38]} 43... Kf4 {[%clk 0:00:28]} 44. b5 {[%clk 0:00:27.7]}
44... axb5+ {[%clk 0:00:29]} 45. Kxb5 {[%clk 0:00:25.5]} 45... Kf3 {[%clk
0:00:30.9]} 46. Nd3 {[%clk 0:00:23.3]} 46... Kg2 {[%clk 0:00:30.7]} 47. a5
{[%clk 0:00:22.5]} 47... Bc7 {[%clk 0:00:24.5]} 48. a6 {[%clk 0:00:22]} 48...
Bb8 {[%clk 0:00:24.5]} 49. c6 {[%clk 0:00:23.5]} 49... Kxh2 {[%clk 0:00:25.1]}
50. c7 {[%clk 0:00:21.9]} 50... Bxc7 {[%clk 0:00:26.2]} 51. a7 {[%clk
0:00:23.2]} 51... h3 {[%clk 0:00:27.1]} 52. a8=Q {[%clk 0:00:24.5]} 52... Kg1
{[%clk 0:00:27.3]} 53. Qa1+ {[%clk 0:00:24.8]} 53... Kg2 {[%clk 0:00:28.1]} 54.
Qb2+ {[%clk 0:00:24.6]} 54... Kg1 {[%clk 0:00:28]} 55. Qf2+ {[%clk 0:00:25.7]}
55... Kh1 {[%clk 0:00:28.9]} 56. Qf3+ {[%clk 0:00:23.4]} 56... Kh2 {[%clk
0:00:29.7]} 57. Nf4 {[%clk 0:00:19]} 57... Bxf4 {[%clk 0:00:28.3]} 58. Qxf4+
{[%clk 0:00:20.5]} 58... Kg2 {[%clk 0:00:29.9]} 59. c4 {[%clk 0:00:21.1]} 1-0

[Event "*** Titled Tuesday Blitz"]
[Site "Chess.com"]
[Date "2018.09.04"]
[Round "6"]
[White "enriquetejedor"]
[Black "Vamostodorecto"]
[Result "0-1"]
[WhiteElo "2365"]
[BlackElo "2406"]
[TimeControl "180+2"]
[EndTime "14:55:02 PDT"]
[Termination "Vamostodorecto won by resignation"]

1. e4 {[%clk 0:02:57.2]} 1... e6 {[%clk 0:03:00.2]} 2. d4 {[%clk 0:02:57.2]}
2... d5 {[%clk 0:03:01.7]} 3. Nd2 {[%clk 0:02:56.4]} 3... Nf6 {[%clk 0:03:01.7]}
4. e5 {[%clk 0:02:55.6]} 4... Nfd7 {[%clk 0:03:02.8]} 5. Bd3 {[%clk 0:02:56.1]}
5... c5 {[%clk 0:03:04]} 6. c3 {[%clk 0:02:51.7]} 6... Nc6 {[%clk 0:03:05.1]} 7.
Ngf3 {[%clk 0:02:46]} 7... Be7 {[%clk 0:03:02.3]} 8. O-O {[%clk 0:02:44.5]} 8...
a6 {[%clk 0:03:00.5]} 9. Re1 {[%clk 0:02:34.8]} 9... cxd4 {[%clk 0:02:56.9]} 10.
cxd4 {[%clk 0:02:32.4]} 10... g5 {[%clk 0:02:58.4]} 11. Nb3 {[%clk 0:01:57.5]}
11... g4 {[%clk 0:02:56.8]} 12. Nfd2 {[%clk 0:01:51.2]} 12... h5 {[%clk
0:02:58]} 13. Nf1 {[%clk 0:01:46.1]} 13... Qb6 {[%clk 0:02:36.9]} 14. Be3 {[%clk
0:01:32]} 14... a5 {[%clk 0:02:29.8]} 15. a4 {[%clk 0:01:25.4]} 15... Bb4 {[%clk
0:02:30.3]} 16. Re2 {[%clk 0:01:23.5]} 16... Qd8 {[%clk 0:02:16]} 17. Rc2 {[%clk
0:01:16.9]} 17... Nb6 {[%clk 0:02:16.1]} 18. Bb5 {[%clk 0:01:04.2]} 18... Bd7
{[%clk 0:02:15.1]} 19. Nc5 {[%clk 0:01:00.3]} 19... Bxc5 {[%clk 0:02:09.3]} 20.
Rxc5 {[%clk 0:00:59.5]} 20... Nb4 {[%clk 0:02:05.8]} 21. b3 {[%clk 0:00:42.2]}
21... Bxb5 {[%clk 0:02:04.7]} 22. Rxb5 {[%clk 0:00:40.3]} 22... Rg8 {[%clk
0:01:38.1]} 23. Qd2 {[%clk 0:00:39.1]} 23... h4 {[%clk 0:01:26.8]} 24. Rc1
{[%clk 0:00:32.1]} 24... Nc6 {[%clk 0:01:25.5]} 25. Rc3 {[%clk 0:00:21.5]} 25...
Rb8 {[%clk 0:01:20.9]} 26. Qd3 {[%clk 0:00:18.9]} 26... Nd7 {[%clk 0:01:20.3]}
27. Qh7 {[%clk 0:00:18.2]} 27... Ne7 {[%clk 0:00:48.1]} 28. Qxh4 {[%clk
0:00:03.4]} 28... b6 {[%clk 0:00:47.4]} 29. Ng3 {[%clk 0:00:03.6]} 29... Rc8
{[%clk 0:00:41]} 30. Rxc8 {[%clk 0:00:04.5]} 30... Qxc8 {[%clk 0:00:42.9]} 31.
Qh7 {[%clk 0:00:05.4]} 31... Qc3 {[%clk 0:00:35.2]} 32. h4 {[%clk 0:00:05.7]}
32... gxh3 {[%clk 0:00:35.1]} 33. Qxh3 {[%clk 0:00:06.8]} 33... Qe1+ {[%clk
0:00:31.1]} 34. Kh2 {[%clk 0:00:06.8]} 34... Ng6 {[%clk 0:00:31.5]} 35. Nh5
{[%clk 0:00:06.5]} 35... Rh8 {[%clk 0:00:30.6]} 36. g4 {[%clk 0:00:05.3]} 36...
Qe2 {[%clk 0:00:30]} 37. Kg2 {[%clk 0:00:05.4]} 37... Qc2 {[%clk 0:00:24.7]} 38.
b4 {[%clk 0:00:05.8]} 38... Qxa4 {[%clk 0:00:24.8]} 39. bxa5 {[%clk 0:00:03]}
39... Qxb5 {[%clk 0:00:25]} 40. axb6 {[%clk 0:00:04.3]} 40... Qxb6 {[%clk
0:00:25.7]} 41. Qf3 {[%clk 0:00:05.4]} 41... Nh4+ {[%clk 0:00:25.7]} 42. Kg3
{[%clk 0:00:05.4]} 42... Nxf3 {[%clk 0:00:27.6]} 43. Kxf3 {[%clk 0:00:04.1]}
43... Qb1 {[%clk 0:00:28.5]} 44. Ng3 {[%clk 0:00:04.8]} 44... Qd3 {[%clk
0:00:27.7]} 45. Kf4 {[%clk 0:00:05.6]} 45... Rg8 {[%clk 0:00:27.1]} 46. g5
{[%clk 0:00:06.7]} 46... Nf8 {[%clk 0:00:26.9]} 47. Nh5 {[%clk 0:00:06.9]} 47...
Ng6+ {[%clk 0:00:28.8]} 48. Kg3 {[%clk 0:00:07.4]} 48... Ne7 {[%clk 0:00:26.1]}
49. Nf6+ {[%clk 0:00:08.3]} 49... Kd8 {[%clk 0:00:25.8]} 50. Kg4 {[%clk
0:00:04.1]} 50... Qf5+ {[%clk 0:00:25.4]} 51. Kh4 {[%clk 0:00:04.4]} 51... Rh8+
{[%clk 0:00:26]} 52. Nh5 {[%clk 0:00:04.2]} 52... Qg6 {[%clk 0:00:25.4]} 53. Kg4
{[%clk 0:00:04.5]} 0-1

[Event "*** Titled Tuesday Blitz"]
[Site "Chess.com"]
[Date "2018.09.04"]
[Round "6"]
[White "JonahWillow"]
[Black "Samuray111"]
[Result "1/2-1/2"]
[WhiteElo "2743"]
[BlackElo "2615"]
[TimeControl "180+2"]
[EndTime "14:55:16 PDT"]
[Termination "Game drawn - insufficient material"]

1. e4 {[%clk 0:03:01.9]} 1... c6 {[%clk 0:02:59]} 2. d4 {[%clk 0:03:02.8]} 2...
g6 {[%clk 0:02:59.5]} 3. Nc3 {[%clk 0:03:01.8]} 3... Bg7 {[%clk 0:03:00.4]} 4.
f4 {[%clk 0:03:03]} 4... d5 {[%clk 0:03:00.6]} 5. e5 {[%clk 0:03:03.6]} 5... Nh6
{[%clk 0:03:01.4]} 6. Be2 {[%clk 0:03:00.6]} 6... Na6 {[%clk 0:02:59.5]} 7. Nf3
{[%clk 0:02:55.8]} 7... Bg4 {[%clk 0:02:59.4]} 8. O-O {[%clk 0:02:54.5]} 8...
Nc7 {[%clk 0:02:59.7]} 9. h3 {[%clk 0:02:48]} 9... Bxf3 {[%clk 0:03:00.3]} 10.
Bxf3 {[%clk 0:02:49.9]} 10... Nf5 {[%clk 0:02:50.5]} 11. g4 {[%clk 0:02:17.1]}
11... Nh4 {[%clk 0:02:49.1]} 12. Bh1 {[%clk 0:02:12.5]} 12... h5 {[%clk
0:02:49.3]} 13. Be3 {[%clk 0:02:13.3]} 13... hxg4 {[%clk 0:02:48.5]} 14. hxg4
{[%clk 0:02:12.5]} 14... e6 {[%clk 0:02:39.3]} 15. Bf2 {[%clk 0:02:01.6]} 15...
Qe7 {[%clk 0:02:39.6]} 16. Bg3 {[%clk 0:01:56.7]} 16... Rh7 {[%clk 0:02:25]} 17.
Rf2 {[%clk 0:01:38.4]} 17... O-O-O {[%clk 0:02:22.8]} 18. Rh2 {[%clk 0:01:39.7]}
18... Rdh8 {[%clk 0:02:23.9]} 19. Qe1 {[%clk 0:01:34.6]} 19... g5 {[%clk
0:02:19]} 20. Ne2 {[%clk 0:01:01.6]} 20... f5 {[%clk 0:02:07.4]} 21. gxf5 {[%clk
0:00:42.3]} 21... Nxf5 {[%clk 0:02:07.6]} 22. Rxh7 {[%clk 0:00:42.9]} 22... Rxh7
{[%clk 0:02:08.6]} 23. Qf2 {[%clk 0:00:43.4]} 23... Bh6 {[%clk 0:01:46.3]} 24.
Rf1 {[%clk 0:00:39.9]} 24... Rg7 {[%clk 0:01:46.9]} 25. Bg2 {[%clk 0:00:38.7]}
25... Qb4 {[%clk 0:01:37.1]} 26. b3 {[%clk 0:00:39.4]} 26... Qd2 {[%clk
0:01:37.2]} 27. c3 {[%clk 0:00:39.1]} 27... Ne3 {[%clk 0:01:17.7]} 28. fxg5
{[%clk 0:00:36.8]} 28... Rxg5 {[%clk 0:01:10.3]} 29. Bf4 {[%clk 0:00:31.8]}
29... Rf5 {[%clk 0:01:00.2]} 30. Qxe3 {[%clk 0:00:29.6]} 30... Qxe3+ {[%clk
0:01:00.4]} 31. Bxe3 {[%clk 0:00:31.2]} 31... Bxe3+ {[%clk 0:01:01.9]} 32. Kh2
{[%clk 0:00:32.9]} 32... Rxf1 {[%clk 0:00:59.8]} 33. Bxf1 {[%clk 0:00:34.8]}
33... Bd2 {[%clk 0:01:00.3]} 34. Bh3 {[%clk 0:00:35.3]} 34... Kd7 {[%clk
0:01:00.8]} 35. a4 {[%clk 0:00:36.5]} 35... Ke7 {[%clk 0:00:59.6]} 36. Kg3
{[%clk 0:00:37.7]} 36... b5 {[%clk 0:01:00.2]} 37. Kf3 {[%clk 0:00:36.7]} 37...
b4 {[%clk 0:01:00.3]} 38. cxb4 {[%clk 0:00:35.8]} 38... Bxb4 {[%clk 0:00:57.1]}
39. Ke3 {[%clk 0:00:35.7]} 39... a5 {[%clk 0:00:58.6]} 40. Kd3 {[%clk
0:00:36.4]} 40... c5 {[%clk 0:00:57.6]} 41. dxc5 {[%clk 0:00:35.9]} 41... Bxc5
{[%clk 0:00:59]} 42. Nf4 {[%clk 0:00:36.9]} 42... Ba3 {[%clk 0:00:58]} 43. Kc2
{[%clk 0:00:36.4]} 43... Bc5 {[%clk 0:00:58.6]} 44. Kd3 {[%clk 0:00:37.5]} 44...
Bg1 {[%clk 0:00:59.7]} 45. Kc3 {[%clk 0:00:37.4]} 45... Bh2 {[%clk 0:00:59.8]}
46. Nd3 {[%clk 0:00:38.9]} 46... Na6 {[%clk 0:01:00.7]} 47. Kd4 {[%clk
0:00:39.7]} 47... Bg1+ {[%clk 0:01:00.7]} 48. Kc3 {[%clk 0:00:40.9]} 48... Be3
{[%clk 0:01:01]} 49. b4 {[%clk 0:00:38.9]} 49... axb4+ {[%clk 0:01:01]} 50. Nxb4
{[%clk 0:00:40.8]} 50... Bd2+ {[%clk 0:00:59.1]} 51. Kxd2 {[%clk 0:00:38.7]}
51... Nxb4 {[%clk 0:01:00.6]} 52. a5 {[%clk 0:00:40.6]} 52... Nc6 {[%clk
0:00:58.5]} 53. a6 {[%clk 0:00:40.2]} 53... Nxe5 {[%clk 0:00:59.8]} 54. a7
{[%clk 0:00:39.7]} 54... Nc4+ {[%clk 0:01:01.1]} 55. Kc3 {[%clk 0:00:40.9]}
55... Nb6 {[%clk 0:01:02.6]} 56. Kd4 {[%clk 0:00:40.6]} 56... Kd6 {[%clk
0:01:03.4]} 57. Bg2 {[%clk 0:00:27.3]} 57... e5+ {[%clk 0:01:03.9]} 58. Kd3
{[%clk 0:00:28.9]} 58... Kc6 {[%clk 0:01:00.6]} 59. Bf3 {[%clk 0:00:28.9]} 59...
Kb7 {[%clk 0:00:59.4]} 60. Bxd5+ {[%clk 0:00:27.3]} 60... Kxa7 {[%clk
0:00:58.3]} 61. Ke4 {[%clk 0:00:29.2]} 61... Nd7 {[%clk 0:00:59.6]} 62. Be6
{[%clk 0:00:29]} 62... Nc5+ {[%clk 0:01:00.8]} 63. Kxe5 {[%clk 0:00:30.9]} 63...
Kb6 {[%clk 0:01:02]} 64. Bd5 {[%clk 0:00:30.3]} 64... Nd3+ {[%clk 0:01:02.9]}
65. Ke4 {[%clk 0:00:30.4]} 65... Nc5+ {[%clk 0:01:04.1]} 66. Kd4 {[%clk
0:00:30.9]} 66... Nd3 {[%clk 0:01:05.2]} 67. Bc6 {[%clk 0:00:30.1]} 67... Kxc6
{[%clk 0:01:05.8]} 1/2-1/2

[Event "*** Titled Tuesday Blitz"]
[Site "Chess.com"]
[Date "2018.09.04"]
[Round "6"]
[White "BvsN"]
[Black "nochewycandy"]
[Result "0-1"]
[WhiteElo "2226"]
[BlackElo "2165"]
[TimeControl "180+2"]
[EndTime "14:55:20 PDT"]
[Termination "nochewycandy won by resignation"]

1. d4 {[%clk 0:03:01.9]} 1... Nf6 {[%clk 0:03:00.7]} 2. c4 {[%clk 0:03:02]} 2...
g6 {[%clk 0:03:01.5]} 3. Nc3 {[%clk 0:03:02]} 3... Bg7 {[%clk 0:03:02.4]} 4. e4
{[%clk 0:03:03.2]} 4... d6 {[%clk 0:03:03.7]} 5. Nge2 {[%clk 0:03:04]} 5... O-O
{[%clk 0:03:05]} 6. f3 {[%clk 0:03:05.2]} 6... c5 {[%clk 0:03:04.4]} 7. d5
{[%clk 0:03:05.7]} 7... e6 {[%clk 0:03:05.5]} 8. Ng3 {[%clk 0:03:06.9]} 8...
exd5 {[%clk 0:03:05.9]} 9. cxd5 {[%clk 0:03:08.6]} 9... a6 {[%clk 0:03:06.3]}
10. a4 {[%clk 0:03:09.7]} 10... Nbd7 {[%clk 0:03:06.6]} 11. Be2 {[%clk
0:03:10.3]} 11... Qc7 {[%clk 0:03:08.2]} 12. O-O {[%clk 0:03:09.9]} 12... Rb8
{[%clk 0:03:06.5]} 13. Bg5 {[%clk 0:03:00.9]} 13... h6 {[%clk 0:03:06.7]} 14.
Be3 {[%clk 0:03:01.2]} 14... Re8 {[%clk 0:03:05.8]} 15. Qd2 {[%clk 0:03:01.6]}
15... Kh7 {[%clk 0:03:07.3]} 16. Rfc1 {[%clk 0:02:48.7]} 16... Qa5 {[%clk
0:02:58.3]} 17. Bf4 {[%clk 0:02:42.6]} 17... Ne5 {[%clk 0:02:56.1]} 18. Nf1
{[%clk 0:02:39.5]} 18... Qb4 {[%clk 0:02:20.3]} 19. a5 {[%clk 0:01:54.5]} 19...
Qd4+ {[%clk 0:01:58]} 20. Be3 {[%clk 0:01:49.2]} 20... Qxd2 {[%clk 0:01:58.2]}
21. Nxd2 {[%clk 0:01:50.4]} 21... b5 {[%clk 0:01:52.5]} 22. axb6 {[%clk
0:01:50.4]} 22... Rxb6 {[%clk 0:01:53.5]} 23. Ra2 {[%clk 0:01:47.8]} 23... g5
{[%clk 0:01:48.2]} 24. Nc4 {[%clk 0:01:40.7]} 24... Nxc4 {[%clk 0:01:47.5]} 25.
Bxc4 {[%clk 0:01:42.2]} 25... Nd7 {[%clk 0:01:44.4]} 26. Be2 {[%clk 0:01:35.9]}
26... f5 {[%clk 0:01:44.7]} 27. Bf2 {[%clk 0:01:15.3]} 27... f4 {[%clk 0:01:32]}
28. Rca1 {[%clk 0:01:08.9]} 28... Ne5 {[%clk 0:01:25.7]} 29. Na4 {[%clk
0:00:54.9]} 29... Rb4 {[%clk 0:01:02.2]} 30. Nxc5 {[%clk 0:00:43.2]} 30... dxc5
{[%clk 0:00:59.5]} 31. Bxc5 {[%clk 0:00:44.3]} 31... Rb3 {[%clk 0:00:49.9]} 32.
Bd1 {[%clk 0:00:29.9]} 32... Rb5 {[%clk 0:00:50.1]} 33. b4 {[%clk 0:00:28.6]}
33... Nd7 {[%clk 0:00:26.7]} 34. Rc1 {[%clk 0:00:27.5]} 34... Nxc5 {[%clk
0:00:22.6]} 35. bxc5 {[%clk 0:00:27.1]} 35... Rxc5 {[%clk 0:00:24.5]} 36. Rb1
{[%clk 0:00:24.9]} 36... Bd4+ {[%clk 0:00:18.4]} 37. Kh1 {[%clk 0:00:23.1]}
37... Re7 {[%clk 0:00:13.5]} 38. Bc2 {[%clk 0:00:24.2]} 38... Kg7 {[%clk
0:00:13.2]} 39. h3 {[%clk 0:00:20.5]} 39... Rb7 {[%clk 0:00:13.9]} 40. Rf1
{[%clk 0:00:19.5]} 40... Rb2 {[%clk 0:00:14.4]} 41. Rxb2 {[%clk 0:00:17]} 41...
Bxb2 {[%clk 0:00:15.4]} 42. Bd3 {[%clk 0:00:18.2]} 42... a5 {[%clk 0:00:16.4]}
43. Rd1 {[%clk 0:00:16.7]} 43... Bd7 {[%clk 0:00:17.3]} 44. Re1 {[%clk 0:00:17]}
44... Kf6 {[%clk 0:00:17.5]} 45. Bb1 {[%clk 0:00:15.1]} 45... a4 {[%clk
0:00:18.1]} 46. Ba2 {[%clk 0:00:16.1]} 46... a3 {[%clk 0:00:19.5]} 47. Rd1
{[%clk 0:00:16.9]} 47... Ke5 {[%clk 0:00:20.7]} 48. Rd2 {[%clk 0:00:17.4]} 48...
Rc1+ {[%clk 0:00:19.6]} 49. Kh2 {[%clk 0:00:18.1]} 49... Bd4 {[%clk 0:00:20.2]}
50. g3 {[%clk 0:00:11.1]} 50... fxg3+ {[%clk 0:00:19.1]} 51. Kxg3 {[%clk
0:00:12.4]} 51... Be3 {[%clk 0:00:19.7]} 52. Re2 {[%clk 0:00:10.4]} 52... Bf4+
{[%clk 0:00:20.9]} 53. Kg2 {[%clk 0:00:10.9]} 53... Ba4 {[%clk 0:00:19.8]} 54.
Rf2 {[%clk 0:00:11.4]} 54... Rc2 {[%clk 0:00:20.8]} 55. Kf1 {[%clk 0:00:10.9]}
55... Rxf2+ {[%clk 0:00:21]} 56. Kxf2 {[%clk 0:00:12.5]} 56... Kd4 {[%clk
0:00:22.4]} 57. Ke2 {[%clk 0:00:11.4]} 57... Kc3 {[%clk 0:00:23.8]} 58. d6
{[%clk 0:00:02.7]} 58... Bxd6 {[%clk 0:00:24.4]} 59. Be6 {[%clk 0:00:03.7]}
59... Bb3 {[%clk 0:00:24.9]} 60. e5 {[%clk 0:00:03]} 60... Bxe5 {[%clk
0:00:25.7]} 61. Bxb3 {[%clk 0:00:02.8]} 61... Kxb3 {[%clk 0:00:26.8]} 0-1

[Event "*** Titled Tuesday Blitz"]
[Site "Chess.com"]
[Date "2018.09.04"]
[Round "6"]
[White "timator"]
[Black "Bryakin_Mikhail"]
[Result "0-1"]
[WhiteElo "2406"]
[BlackElo "2540"]
[TimeControl "180+2"]
[EndTime "14:55:23 PDT"]
[Termination "Bryakin_Mikhail won on time"]

1. Nf3 {[%clk 0:03:01.9]} 1... d5 {[%clk 0:03:00.3]} 2. d4 {[%clk 0:03:02.4]}
2... Nf6 {[%clk 0:03:00.8]} 3. g3 {[%clk 0:03:02.7]} 3... c6 {[%clk 0:03:00.7]}
4. Bg2 {[%clk 0:03:03.7]} 4... Bf5 {[%clk 0:03:02.2]} 5. O-O {[%clk 0:03:04.8]}
5... e6 {[%clk 0:03:03.2]} 6. c4 {[%clk 0:03:05.1]} 6... h6 {[%clk 0:03:04.3]}
7. Nc3 {[%clk 0:03:06.1]} 7... Ne4 {[%clk 0:03:04.9]} 8. Nxe4 {[%clk 0:03:03.1]}
8... Bxe4 {[%clk 0:03:06.8]} 9. b3 {[%clk 0:03:04.4]} 9... Nd7 {[%clk
0:03:05.7]} 10. Bb2 {[%clk 0:03:05.5]} 10... Be7 {[%clk 0:03:05.3]} 11. e3
{[%clk 0:03:02.3]} 11... O-O {[%clk 0:03:05.6]} 12. Re1 {[%clk 0:02:53.8]} 12...
a5 {[%clk 0:03:03.2]} 13. a3 {[%clk 0:02:52.5]} 13... b5 {[%clk 0:02:57.3]} 14.
c5 {[%clk 0:02:50.9]} 14... a4 {[%clk 0:02:45.4]} 15. b4 {[%clk 0:02:43.6]}
15... Qc7 {[%clk 0:02:30.6]} 16. Bf1 {[%clk 0:02:41.6]} 16... Bf6 {[%clk
0:02:25.4]} 17. Nd2 {[%clk 0:02:40.9]} 17... Bh7 {[%clk 0:02:21.2]} 18. f4
{[%clk 0:02:41.9]} 18... Be7 {[%clk 0:02:15.4]} 19. Qf3 {[%clk 0:02:40.9]} 19...
Nf6 {[%clk 0:02:16.4]} 20. Bh3 {[%clk 0:02:38.2]} 20... Ne4 {[%clk 0:02:10.4]}
21. Nxe4 {[%clk 0:02:39.1]} 21... Bxe4 {[%clk 0:02:12.3]} 22. Qe2 {[%clk
0:02:37.2]} 22... Bf5 {[%clk 0:02:11.6]} 23. Bg2 {[%clk 0:02:33.7]} 23... Bf6
{[%clk 0:02:11.3]} 24. Rf1 {[%clk 0:02:32.1]} 24... Rad8 {[%clk 0:01:58.7]} 25.
Rae1 {[%clk 0:02:32.5]} 25... Rfe8 {[%clk 0:01:47.5]} 26. Bc3 {[%clk 0:02:27.6]}
26... Kf8 {[%clk 0:01:47.9]} 27. Rc1 {[%clk 0:02:16.6]} 27... Ke7 {[%clk
0:01:44.5]} 28. Be1 {[%clk 0:02:17.4]} 28... Kd7 {[%clk 0:01:36.6]} 29. g4
{[%clk 0:02:17.8]} 29... Bg6 {[%clk 0:01:32.5]} 30. Bg3 {[%clk 0:02:18.5]} 30...
Qa7 {[%clk 0:01:27.8]} 31. h4 {[%clk 0:02:15.5]} 31... Kc8 {[%clk 0:01:24.6]}
32. Rf2 {[%clk 0:01:51.1]} 32... Qd7 {[%clk 0:01:18]} 33. Rcf1 {[%clk
0:01:29.4]} 33... Kb7 {[%clk 0:01:16.9]} 34. Bf3 {[%clk 0:01:29.5]} 34... Be4
{[%clk 0:01:11.3]} 35. Rh2 {[%clk 0:01:27.2]} 35... Rh8 {[%clk 0:01:07.8]} 36.
Rff2 {[%clk 0:01:25.6]} 36... Rdg8 {[%clk 0:01:08.1]} 37. Qf1 {[%clk 0:01:00]}
37... Bd8 {[%clk 0:01:07.5]} 38. Qg2 {[%clk 0:00:59.4]} 38... Bd3 {[%clk
0:01:03.7]} 39. Be2 {[%clk 0:00:58.8]} 39... Bb1 {[%clk 0:01:03.3]} 40. Qf1
{[%clk 0:00:56.8]} 40... Be4 {[%clk 0:01:03.2]} 41. g5 {[%clk 0:00:43.8]} 41...
f6 {[%clk 0:00:58.5]} 42. Bf3 {[%clk 0:00:36.7]} 42... Bc7 {[%clk 0:00:58.8]}
43. Qg2 {[%clk 0:00:36]} 43... Bd3 {[%clk 0:00:58.8]} 44. Bg4 {[%clk 0:00:34.9]}
44... Be4 {[%clk 0:00:55.7]} 45. Bf3 {[%clk 0:00:35.2]} 45... Bf5 {[%clk
0:00:57.2]} 46. Qf1 {[%clk 0:00:24.4]} 46... Qe7 {[%clk 0:00:57]} 47. gxh6
{[%clk 0:00:19.1]} 47... gxh6 {[%clk 0:00:56.3]} 48. Rfg2 {[%clk 0:00:20.6]}
48... h5 {[%clk 0:00:39.2]} 49. Be1 {[%clk 0:00:20.1]} 49... Bg4 {[%clk
0:00:40.4]} 50. Kh1 {[%clk 0:00:19.4]} 50... e5 {[%clk 0:00:40.8]} 51. fxe5
{[%clk 0:00:16.2]} 51... fxe5 {[%clk 0:00:42.7]} 52. Bxg4 {[%clk 0:00:17.7]}
52... hxg4 {[%clk 0:00:42.4]} 53. Bg3 {[%clk 0:00:15.3]} 53... Rf8 {[%clk
0:00:39.6]} 54. Qd1 {[%clk 0:00:10.8]} 54... Rf3 {[%clk 0:00:39.3]} 55. Bxe5
{[%clk 0:00:09.7]} 55... Bxe5 {[%clk 0:00:39]} 56. dxe5 {[%clk 0:00:11.6]} 56...
Qxe5 {[%clk 0:00:23]} 57. Rxg4 {[%clk 0:00:10.5]} 57... Rxe3 {[%clk 0:00:24.4]}
0-1